[Event "*** Qualifier 1: Titled Tuesday 3|2 Blitz"]
[Site "Chess.com"]
[Date "2017.04.04"]
[Round "9"]
[White "GamayevOleg"]
[Black "dolynachess"]
[Result "0-1"]
[WhiteElo "2402"]
[BlackElo "2324"]
[TimeControl "180+2"]
[EndTime "15:05:08 PDT"]
[Termination "dolynachess won by resignation"]

1. d3 {[%clk 0:03:00.4]} 1... Nf6 {[%clk 0:02:58.2]} 2. e4 {[%clk 0:03:02.3]}
2... d6 {[%clk 0:02:58.9]} 3. Nf3 {[%clk 0:03:03.4]} 3... g6 {[%clk 0:03:00.4]}
4. Be2 {[%clk 0:03:04.9]} 4... c5 {[%clk 0:03:01.7]} 5. O-O {[%clk 0:03:06.8]}
5... Bg7 {[%clk 0:03:03.2]} 6. c3 {[%clk 0:03:08.4]} 6... O-O {[%clk 0:03:04.6]}
7. a4 {[%clk 0:03:10]} 7... Bg4 {[%clk 0:03:05.7]} 8. Ng5 {[%clk 0:03:10.3]}
8... Bxe2 {[%clk 0:03:06.3]} 9. Qxe2 {[%clk 0:03:12.2]} 9... Nc6 {[%clk
0:03:06.5]} 10. Nf3 {[%clk 0:03:12.7]} 10... a6 {[%clk 0:03:06.6]} 11. Nbd2
{[%clk 0:03:10.7]} 11... Nd7 {[%clk 0:03:04.8]} 12. Qd1 {[%clk 0:02:44.7]} 12...
b5 {[%clk 0:03:05]} 13. Qc2 {[%clk 0:02:45.8]} 13... Qb6 {[%clk 0:03:03.5]} 14.
Re1 {[%clk 0:02:40.3]} 14... Rfb8 {[%clk 0:03:02.6]} 15. Nf1 {[%clk 0:02:33.7]}
15... b4 {[%clk 0:02:57]} 16. N1d2 {[%clk 0:02:21.5]} 16... bxc3 {[%clk
0:02:49.9]} 17. bxc3 {[%clk 0:02:23.4]} 17... Qa5 {[%clk 0:02:50.6]} 18. Ra3
{[%clk 0:02:16.3]} 18... Nde5 {[%clk 0:02:29.4]} 19. Nxe5 {[%clk 0:02:13.9]}
19... Nxe5 {[%clk 0:02:30.1]} 20. f4 {[%clk 0:02:10.2]} 20... Nc6 {[%clk
0:02:30.4]} 21. Nc4 {[%clk 0:02:10.3]} 21... Qc7 {[%clk 0:02:29.7]} 22. Bd2
{[%clk 0:02:09.3]} 22... Na5 {[%clk 0:02:28.5]} 23. Nxa5 {[%clk 0:02:05.4]}
23... Qxa5 {[%clk 0:02:29.3]} 24. Rb1 {[%clk 0:01:32.8]} 24... Rxb1+ {[%clk
0:01:50]} 25. Qxb1 {[%clk 0:01:32.8]} 25... c4 {[%clk 0:01:51.6]} 26. Qb4 {[%clk
0:01:13.7]} 26... Qh5 {[%clk 0:01:43.1]} 27. Qb1 {[%clk 0:00:17.9]} 27... Qc5+
{[%clk 0:01:37.8]} 0-1

[Event "*** Qualifier 1: Titled Tuesday 3|2 Blitz"]
[Site "Chess.com"]
[Date "2017.04.04"]
[Round "9"]
[White "Ginger_GM"]
[Black "GameOverBro"]
[Result "1-0"]
[WhiteElo "2461"]
[BlackElo "2254"]
[TimeControl "180+2"]
[EndTime "15:05:20 PDT"]
[Termination "Ginger_GM won by resignation"]

1. d4 {[%clk 0:03:02]} 1... Nf6 {[%clk 0:02:58.8]} 2. Bg5 {[%clk 0:03:01.5]}
2... e6 {[%clk 0:02:58.4]} 3. e4 {[%clk 0:03:00.4]} 3... Be7 {[%clk 0:02:54.7]}
4. Nd2 {[%clk 0:02:58.6]} 4... d6 {[%clk 0:02:47.8]} 5. Bd3 {[%clk 0:02:55.7]}
5... c5 {[%clk 0:02:48]} 6. e5 {[%clk 0:02:50.2]} 6... Nd5 {[%clk 0:02:43.9]} 7.
Bxe7 {[%clk 0:02:44.9]} 7... Qxe7 {[%clk 0:02:44.4]} 8. exd6 {[%clk 0:02:39.7]}
8... Qxd6 {[%clk 0:02:42.8]} 9. Ne4 {[%clk 0:02:37]} 9... Qb6 {[%clk 0:02:39.9]}
10. dxc5 {[%clk 0:02:35.1]} 10... Qxb2 {[%clk 0:02:34.8]} 11. Rb1 {[%clk
0:02:31.2]} 11... Qxa2 {[%clk 0:02:12.7]} 12. Nd6+ {[%clk 0:02:30.8]} 12... Ke7
{[%clk 0:02:12.8]} 13. Ne2 {[%clk 0:02:23.8]} 13... Qa5+ {[%clk 0:02:12.1]} 14.
c3 {[%clk 0:02:16.9]} 14... Qxc5 {[%clk 0:02:10.5]} 15. Ne4 {[%clk 0:02:07.7]}
15... Qc7 {[%clk 0:02:06.5]} 16. O-O {[%clk 0:02:07.5]} 16... Nc6 {[%clk
0:02:00.5]} 17. Qc1 {[%clk 0:01:59.5]} 17... Rd8 {[%clk 0:01:43.2]} 18. Qa3+
{[%clk 0:01:56.6]} 18... Ke8 {[%clk 0:01:43.7]} 19. Rfd1 {[%clk 0:01:47.1]}
19... Qe7 {[%clk 0:01:43.7]} 20. Qb2 {[%clk 0:01:19.3]} 20... Kf8 {[%clk
0:01:30.5]} 21. N2g3 {[%clk 0:01:16.2]} 21... Ne5 {[%clk 0:01:11.2]} 22. Bf1
{[%clk 0:01:13.5]} 22... b5 {[%clk 0:01:01.3]} 23. Qxb5 {[%clk 0:01:00.8]} 23...
Nxc3 {[%clk 0:00:56]} 24. Rxd8+ {[%clk 0:00:54.9]} 24... Qxd8 {[%clk 0:00:52.4]}
25. Nxc3 {[%clk 0:00:54.7]} 25... Kg8 {[%clk 0:00:42.6]} 26. Qxe5 {[%clk
0:00:47.2]} 1-0

[Event "*** Qualifier 1: Titled Tuesday 3|2 Blitz"]
[Site "Chess.com"]
[Date "2017.04.04"]
[Round "9"]
[White "rithwik2002"]
[Black "ecwinslow"]
[Result "1-0"]
[WhiteElo "1841"]
[BlackElo "2069"]
[TimeControl "180+2"]
[EndTime "15:05:33 PDT"]
[Termination "rithwik2002 won by resignation"]

1. d4 {[%clk 0:03:00]} 1... Nf6 {[%clk 0:01:24.8]} 2. Bf4 {[%clk 0:02:58]} 2...
d6 {[%clk 0:01:23.1]} 3. Nc3 {[%clk 0:02:53.3]} 3... g6 {[%clk 0:01:23.1]} 4. e4
{[%clk 0:02:53.4]} 4... Bg7 {[%clk 0:01:24.7]} 5. Qd2 {[%clk 0:02:54.1]} 5...
Nbd7 {[%clk 0:01:18.7]} 6. O-O-O {[%clk 0:02:42.5]} 6... O-O {[%clk 0:01:13.5]}
7. Nf3 {[%clk 0:02:35.2]} 7... c6 {[%clk 0:01:07.2]} 8. Bh6 {[%clk 0:02:28]}
8... Qa5 {[%clk 0:01:02.8]} 9. h4 {[%clk 0:02:16.6]} 9... b5 {[%clk 0:00:59.8]}
10. Bxg7 {[%clk 0:00:47.7]} 10... Kxg7 {[%clk 0:00:57.8]} 11. e5 {[%clk
0:00:48.9]} 11... Ng8 {[%clk 0:00:44.9]} 12. h5 {[%clk 0:00:38.4]} 12... b4
{[%clk 0:00:43.6]} 13. hxg6 {[%clk 0:00:36.7]} 13... hxg6 {[%clk 0:00:41.5]} 14.
Ng5 {[%clk 0:00:30.9]} 14... dxe5 {[%clk 0:00:15]} 15. Rh7+ {[%clk 0:00:25.3]}
15... Kf6 {[%clk 0:00:14.6]} 16. Nce4+ {[%clk 0:00:26.4]} 16... Kf5 {[%clk
0:00:15.6]} 17. g4+ {[%clk 0:00:25.8]} 1-0

[Event "*** Qualifier 1: Titled Tuesday 3|2 Blitz"]
[Site "Chess.com"]
[Date "2017.04.04"]
[Round "9"]
[White "iturrizaga"]
[Black "Bad4life"]
[Result "1-0"]
[WhiteElo "2662"]
[BlackElo "2293"]
[TimeControl "180+2"]
[EndTime "15:05:42 PDT"]
[Termination "iturrizaga won by resignation"]

1. Nf3 {[%clk 0:03:02]} 1... c5 {[%clk 0:03:01]} 2. c4 {[%clk 0:03:02.5]} 2...
Nc6 {[%clk 0:03:00.9]} 3. d4 {[%clk 0:03:03.2]} 3... cxd4 {[%clk 0:03:01.9]} 4.
Nxd4 {[%clk 0:03:05.1]} 4... Nf6 {[%clk 0:03:03.1]} 5. g3 {[%clk 0:03:06.2]}
5... e6 {[%clk 0:03:04.6]} 6. Bg2 {[%clk 0:03:07.4]} 6... Qb6 {[%clk 0:03:03.9]}
7. Nc2 {[%clk 0:02:53.6]} 7... Be7 {[%clk 0:02:57.7]} 8. Nc3 {[%clk 0:02:52.2]}
8... d6 {[%clk 0:02:51.1]} 9. O-O {[%clk 0:02:49.2]} 9... O-O {[%clk 0:02:52]}
10. b3 {[%clk 0:02:47.8]} 10... e5 {[%clk 0:02:50]} 11. Bg5 {[%clk 0:02:38.9]}
11... Qa5 {[%clk 0:02:31.5]} 12. Qd2 {[%clk 0:02:38.5]} 12... Be6 {[%clk
0:02:20]} 13. Rfd1 {[%clk 0:02:35.4]} 13... Rfd8 {[%clk 0:02:15]} 14. Rab1
{[%clk 0:02:02.6]} 14... Rab8 {[%clk 0:01:49.7]} 15. b4 {[%clk 0:01:59.4]} 15...
Qb6 {[%clk 0:01:35]} 16. Be3 {[%clk 0:01:31.7]} 16... Nd4 {[%clk 0:01:10.2]} 17.
Nxd4 {[%clk 0:01:32]} 17... exd4 {[%clk 0:01:09]} 18. Bxd4 {[%clk 0:01:33.9]}
18... Qc7 {[%clk 0:01:07.7]} 19. Nd5 {[%clk 0:01:30]} 19... Qxc4 {[%clk
0:00:38]} 20. Nxe7+ {[%clk 0:01:30.1]} 20... Kf8 {[%clk 0:00:39.6]} 21. Bxf6
{[%clk 0:01:31.8]} 21... gxf6 {[%clk 0:00:39]} 22. Nd5 {[%clk 0:01:33]} 22...
Kg7 {[%clk 0:00:23]} 23. Rbc1 {[%clk 0:01:32.1]} 23... Qg4 {[%clk 0:00:22.1]}
24. h3 {[%clk 0:01:28.5]} 24... Qh5 {[%clk 0:00:21.4]} 25. Nf4 {[%clk
0:01:29.2]} 25... Qf5 {[%clk 0:00:20.9]} 26. Nxe6+ {[%clk 0:01:29]} 26... fxe6
{[%clk 0:00:22.8]} 27. Rc7+ {[%clk 0:01:29.3]} 27... Kh8 {[%clk 0:00:22.4]} 28.
Qh6 {[%clk 0:01:27.5]} 28... Rg8 {[%clk 0:00:23.3]} 29. Rxd6 {[%clk 0:01:28]}
29... Rbf8 {[%clk 0:00:16.9]} 30. Rdd7 {[%clk 0:01:28.7]} 30... Qb1+ {[%clk
0:00:16.7]} 31. Kh2 {[%clk 0:01:29.1]} 31... Rxg3 {[%clk 0:00:12]} 32. Rxh7+
{[%clk 0:01:28.9]} 1-0

[Event "*** Qualifier 1: Titled Tuesday 3|2 Blitz"]
[Site "Chess.com"]
[Date "2017.04.04"]
[Round "9"]
[White "evgenyermolaev"]
[Black "NTBT_DHS"]
[Result "0-1"]
[WhiteElo "2357"]
[BlackElo "2447"]
[TimeControl "180+2"]
[EndTime "15:06:07 PDT"]
[Termination "NTBT_DHS won by resignation"]

1. e4 {[%clk 0:03:02]} 1... g6 {[%clk 0:02:55.8]} 2. d4 {[%clk 0:03:02.6]} 2...
Bg7 {[%clk 0:02:57.2]} 3. Nc3 {[%clk 0:03:03.9]} 3... d6 {[%clk 0:02:57.2]} 4.
Be3 {[%clk 0:03:04.5]} 4... a6 {[%clk 0:02:57.9]} 5. f3 {[%clk 0:03:05.5]} 5...
Nd7 {[%clk 0:02:59]} 6. g4 {[%clk 0:03:06.1]} 6... b5 {[%clk 0:02:58.8]} 7. Qd2
{[%clk 0:03:05.8]} 7... h6 {[%clk 0:02:59.7]} 8. Nge2 {[%clk 0:03:05.6]} 8...
Ngf6 {[%clk 0:03:01.1]} 9. Ng3 {[%clk 0:03:06.7]} 9... Nb6 {[%clk 0:02:59.2]}
10. h4 {[%clk 0:03:04.8]} 10... Bb7 {[%clk 0:02:53.5]} 11. h5 {[%clk 0:03:04.1]}
11... g5 {[%clk 0:02:54.9]} 12. Nf5 {[%clk 0:03:02.1]} 12... Bf8 {[%clk
0:02:54.3]} 13. d5 {[%clk 0:03:02.2]} 13... e6 {[%clk 0:02:31.1]} 14. dxe6
{[%clk 0:02:49.1]} 14... fxe6 {[%clk 0:02:32.3]} 15. Nd4 {[%clk 0:02:48.3]}
15... Qd7 {[%clk 0:02:30.7]} 16. a4 {[%clk 0:02:37.9]} 16... b4 {[%clk
0:02:30.2]} 17. Nd1 {[%clk 0:02:35.7]} 17... c5 {[%clk 0:02:31]} 18. Nb3 {[%clk
0:02:35.2]} 18... a5 {[%clk 0:02:27.5]} 19. Rh3 {[%clk 0:02:16.2]} 19... Bc6
{[%clk 0:02:22.9]} 20. e5 {[%clk 0:02:16]} 20... Nfd5 {[%clk 0:02:17.4]} 21.
exd6 {[%clk 0:02:14.2]} 21... Nxe3 {[%clk 0:02:12.1]} 22. Qxe3 {[%clk
0:02:10.9]} 22... Qxd6 {[%clk 0:02:12.6]} 23. Nf2 {[%clk 0:02:08]} 23... Nd5
{[%clk 0:02:08.1]} 24. Qd2 {[%clk 0:01:20.1]} 24... Qe5+ {[%clk 0:01:59.4]} 25.
Ne4 {[%clk 0:01:13.4]} 25... Qxb2 {[%clk 0:01:54.9]} 26. Bb5 {[%clk 0:01:03]}
26... Bxb5 {[%clk 0:01:53.2]} 27. axb5 {[%clk 0:01:04.9]} 27... Bg7 {[%clk
0:01:28.1]} 28. Nd6+ {[%clk 0:00:24.3]} 28... Ke7 {[%clk 0:01:28.6]} 29. Nc4
{[%clk 0:00:25.5]} 29... Qxa1+ {[%clk 0:01:19.9]} 30. Nxa1 {[%clk 0:00:25.6]}
30... Bc3 {[%clk 0:01:21.1]} 31. Nb3 {[%clk 0:00:24.8]} 31... a4 {[%clk
0:01:21.5]} 32. Nxc5 {[%clk 0:00:24.2]} 32... a3 {[%clk 0:01:22.9]} 33. Qxc3
{[%clk 0:00:20.1]} 33... Nxc3 {[%clk 0:01:20.6]} 34. Nb3 {[%clk 0:00:20]} 34...
a2 {[%clk 0:01:21.5]} 35. Na1 {[%clk 0:00:21]} 35... Rhd8 {[%clk 0:01:23]} 36.
Ne3 {[%clk 0:00:20.4]} 36... Nxb5 {[%clk 0:01:20.9]} 0-1

[Event "*** Qualifier 1: Titled Tuesday 3|2 Blitz"]
[Site "Chess.com"]
[Date "2017.04.04"]
[Round "9"]
[White "Spartakus1975"]
[Black "pKiLz5Rn9b"]
[Result "0-1"]
[WhiteElo "2523"]
[BlackElo "2613"]
[TimeControl "180+2"]
[EndTime "15:06:18 PDT"]
[Termination "pKiLz5Rn9b won by resignation"]

1. e4 {[%clk 0:03:02]} 1... e6 {[%clk 0:03:00.9]} 2. d4 {[%clk 0:03:02.4]} 2...
d5 {[%clk 0:03:02.3]} 3. exd5 {[%clk 0:03:04.1]} 3... exd5 {[%clk 0:03:03.4]} 4.
Bd3 {[%clk 0:03:05.8]} 4... Bd6 {[%clk 0:03:04.2]} 5. Qf3 {[%clk 0:03:00.4]}
5... Nc6 {[%clk 0:03:00.8]} 6. c3 {[%clk 0:03:00.7]} 6... Nge7 {[%clk
0:03:01.1]} 7. Ne2 {[%clk 0:03:00.7]} 7... O-O {[%clk 0:02:53.9]} 8. Bf4 {[%clk
0:02:58]} 8... Ng6 {[%clk 0:02:47.4]} 9. Bxd6 {[%clk 0:02:58.9]} 9... Qxd6
{[%clk 0:02:48.6]} 10. Nd2 {[%clk 0:02:59.7]} 10... Re8 {[%clk 0:02:42.7]} 11.
O-O-O {[%clk 0:02:46.4]} 11... Nh4 {[%clk 0:02:20.7]} 12. Qh5 {[%clk 0:02:38.2]}
12... Nf5 {[%clk 0:02:16]} 13. Ng3 {[%clk 0:02:15.3]} 13... g6 {[%clk
0:02:13.2]} 14. Qg5 {[%clk 0:02:01]} 14... h6 {[%clk 0:02:04.2]} 15. Nxf5 {[%clk
0:01:43.7]} 15... Bxf5 {[%clk 0:02:03]} 16. Qxh6 {[%clk 0:01:45]} 16... Bxd3
{[%clk 0:02:03.6]} 17. Nf3 {[%clk 0:01:46.2]} 17... Bf5 {[%clk 0:01:36.1]} 18.
Ng5 {[%clk 0:01:46.9]} 18... Qf6 {[%clk 0:01:31.4]} 19. h3 {[%clk 0:00:53.7]}
19... Qg7 {[%clk 0:01:17.4]} 20. Qh4 {[%clk 0:00:52.5]} 20... f6 {[%clk
0:01:18.5]} 21. Nf3 {[%clk 0:00:52.7]} 21... Be4 {[%clk 0:01:18.8]} 22. Nd2
{[%clk 0:00:53.1]} 22... Bd3 {[%clk 0:01:15.5]} 23. Rde1 {[%clk 0:00:50.6]}
23... g5 {[%clk 0:01:10.2]} 24. Qg3 {[%clk 0:00:50.7]} 24... Bh7 {[%clk
0:01:11.5]} 25. Re3 {[%clk 0:00:16.3]} 25... Qg6 {[%clk 0:01:10.2]} 26. Kd1
{[%clk 0:00:17.5]} 26... Rxe3 {[%clk 0:01:10.8]} 27. fxe3 {[%clk 0:00:18.1]}
27... Ne7 {[%clk 0:01:08.9]} 28. Rf1 {[%clk 0:00:17.6]} 28... Re8 {[%clk
0:01:07.1]} 29. e4 {[%clk 0:00:15.2]} 29... dxe4 {[%clk 0:01:07.5]} 30. Nc4
{[%clk 0:00:16]} 30... e3 {[%clk 0:01:07.3]} 31. Nxe3 {[%clk 0:00:11.8]} 31...
Qd3+ {[%clk 0:01:07.8]} 32. Kc1 {[%clk 0:00:10.6]} 32... Nd5 {[%clk 0:01:02.5]}
33. Rd1 {[%clk 0:00:08.1]} 33... Qb1+ {[%clk 0:01:00.6]} 34. Kd2 {[%clk
0:00:09.8]} 34... Qxb2+ {[%clk 0:01:02]} 0-1

[Event "*** Qualifier 1: Titled Tuesday 3|2 Blitz"]
[Site "Chess.com"]
[Date "2017.04.04"]
[Round "9"]
[White "PelinGorki"]
[Black "amaidel"]
[Result "1-0"]
[WhiteElo "2408"]
[BlackElo "2479"]
[TimeControl "180+2"]
[EndTime "15:06:20 PDT"]
[Termination "PelinGorki won by resignation"]

1. e4 {[%clk 0:03:02]} 1... e6 {[%clk 0:03:00]} 2. Nc3 {[%clk 0:03:01.4]} 2...
d5 {[%clk 0:03:00.6]} 3. d4 {[%clk 0:03:03.3]} 3... Bb4 {[%clk 0:03:00.3]} 4. e5
{[%clk 0:03:02.5]} 4... Ne7 {[%clk 0:03:01.3]} 5. a3 {[%clk 0:03:01.6]} 5...
Bxc3+ {[%clk 0:03:01.9]} 6. bxc3 {[%clk 0:03:03.5]} 6... c5 {[%clk 0:03:03.1]}
7. Qg4 {[%clk 0:03:03.5]} 7... Qc7 {[%clk 0:03:03.6]} 8. Qxg7 {[%clk 0:03:02.5]}
8... Rg8 {[%clk 0:03:04.3]} 9. Qxh7 {[%clk 0:03:04.4]} 9... cxd4 {[%clk
0:03:04.4]} 10. Ne2 {[%clk 0:03:06]} 10... dxc3 {[%clk 0:03:03.7]} 11. f4 {[%clk
0:03:07.1]} 11... Nbc6 {[%clk 0:03:04]} 12. h4 {[%clk 0:03:08.4]} 12... b6
{[%clk 0:02:58.9]} 13. Rh3 {[%clk 0:02:38.6]} 13... d4 {[%clk 0:02:57.4]} 14.
Rg3 {[%clk 0:02:39.3]} 14... Rf8 {[%clk 0:02:47.2]} 15. a4 {[%clk 0:02:39]}
15... Ba6 {[%clk 0:02:34.5]} 16. Ba3 {[%clk 0:02:38.8]} 16... O-O-O {[%clk
0:02:32.9]} 17. Rd1 {[%clk 0:02:37.5]} 17... d3 {[%clk 0:02:28.3]} 18. Nxc3
{[%clk 0:02:38]} 18... Nf5 {[%clk 0:02:16.8]} 19. Bxf8 {[%clk 0:02:20.3]} 19...
Rxf8 {[%clk 0:01:57]} 20. Bxd3 {[%clk 0:02:12.1]} 20... Bxd3 {[%clk 0:01:43.1]}
21. Rgxd3 {[%clk 0:02:14]} 21... Nb4 {[%clk 0:01:43.7]} 22. Rh3 {[%clk
0:02:10.5]} 22... Nxc2+ {[%clk 0:01:43.3]} 23. Kd2 {[%clk 0:00:52.9]} 23... Nce3
{[%clk 0:01:36.2]} 24. Rxe3 {[%clk 0:00:45.5]} 24... Nxe3 {[%clk 0:01:36.1]} 25.
Nb5 {[%clk 0:00:46.9]} 25... Nc4+ {[%clk 0:01:14.8]} 26. Ke2 {[%clk 0:00:44.9]}
26... Qc5 {[%clk 0:01:03]} 27. Qe4 {[%clk 0:00:41]} 27... Kb8 {[%clk 0:00:39.6]}
28. Rd7 {[%clk 0:00:39.4]} 28... Na5 {[%clk 0:00:40]} 29. Rxa7 {[%clk
0:00:34.5]} 29... Nc6 {[%clk 0:00:40.1]} 30. Rc7 {[%clk 0:00:30.1]} 30... Rc8
{[%clk 0:00:40.2]} 31. Rxc8+ {[%clk 0:00:28]} 31... Kxc8 {[%clk 0:00:41.4]} 32.
Qxc6+ {[%clk 0:00:29.3]} 32... Qxc6 {[%clk 0:00:42.3]} 33. Na7+ {[%clk
0:00:30.5]} 33... Kb7 {[%clk 0:00:44.2]} 34. Nxc6 {[%clk 0:00:31.8]} 34... Kxc6
{[%clk 0:00:46.1]} 35. h5 {[%clk 0:00:32.8]} 35... Kd7 {[%clk 0:00:48]} 36. h6
{[%clk 0:00:33.4]} 36... Ke7 {[%clk 0:00:49.9]} 37. g4 {[%clk 0:00:33.8]} 37...
Kf8 {[%clk 0:00:51.8]} 38. g5 {[%clk 0:00:34.4]} 1-0

[Event "*** Qualifier 1: Titled Tuesday 3|2 Blitz"]
[Site "Chess.com"]
[Date "2017.04.04"]
[Round "9"]
[White "macko06"]
[Black "MyleneFarmer"]
[Result "1-0"]
[WhiteElo "2352"]
[BlackElo "2328"]
[TimeControl "180+2"]
[EndTime "15:06:37 PDT"]
[Termination "macko06 won by checkmate"]

1. d4 {[%clk 0:03:02]} 1... a6 {[%clk 0:03:00.6]} 2. e4 {[%clk 0:03:01.6]} 2...
Ra7 {[%clk 0:03:00.7]} 3. f4 {[%clk 0:02:59.3]} 3... Ra8 {[%clk 0:03:00.7]} 4.
Nf3 {[%clk 0:02:59.6]} 4... e6 {[%clk 0:03:02.2]} 5. Bd3 {[%clk 0:02:58.7]} 5...
d5 {[%clk 0:03:03.5]} 6. e5 {[%clk 0:02:58.8]} 6... c5 {[%clk 0:03:03.9]} 7. c3
{[%clk 0:02:59]} 7... Nc6 {[%clk 0:03:04.8]} 8. O-O {[%clk 0:02:58.8]} 8... b5
{[%clk 0:03:05.5]} 9. Ng5 {[%clk 0:02:45.2]} 9... Nh6 {[%clk 0:03:02.2]} 10. Be3
{[%clk 0:02:42.7]} 10... g6 {[%clk 0:02:59.3]} 11. Nd2 {[%clk 0:02:30.6]} 11...
Nf5 {[%clk 0:03:00]} 12. Bxf5 {[%clk 0:02:20.9]} 12... gxf5 {[%clk 0:02:52.8]}
13. Qh5 {[%clk 0:02:19.1]} 13... Qc7 {[%clk 0:02:48.9]} 14. dxc5 {[%clk
0:02:18.6]} 14... h6 {[%clk 0:02:46.9]} 15. Ngf3 {[%clk 0:02:16.9]} 15... Ne7
{[%clk 0:02:41.3]} 16. b4 {[%clk 0:02:12.1]} 16... Ng6 {[%clk 0:02:39.7]} 17.
Nd4 {[%clk 0:02:11.5]} 17... Rg8 {[%clk 0:02:39]} 18. a4 {[%clk 0:02:05.3]}
18... bxa4 {[%clk 0:02:29.6]} 19. Rxa4 {[%clk 0:02:05.6]} 19... Bd7 {[%clk
0:02:29.9]} 20. Ra2 {[%clk 0:02:02.6]} 20... Be7 {[%clk 0:02:02.6]} 21. Qe2
{[%clk 0:01:34.3]} 21... Qb7 {[%clk 0:01:34.5]} 22. N2f3 {[%clk 0:01:27.7]}
22... Kf8 {[%clk 0:01:27.5]} 23. Rfa1 {[%clk 0:01:26.9]} 23... Kg7 {[%clk
0:01:27.7]} 24. Rxa6 {[%clk 0:01:26.8]} 24... Rxa6 {[%clk 0:01:27.9]} 25. Qxa6
{[%clk 0:01:27.9]} 25... Qc7 {[%clk 0:01:23.4]} 26. Qa7 {[%clk 0:01:11.5]} 26...
Qc8 {[%clk 0:01:17.8]} 27. Ra6 {[%clk 0:01:01.3]} 27... Rd8 {[%clk 0:01:03.7]}
28. c6 {[%clk 0:00:55.5]} 28... Be8 {[%clk 0:01:04.5]} 29. b5 {[%clk 0:00:54.6]}
29... Qb8 {[%clk 0:00:54.8]} 30. Qxb8 {[%clk 0:00:51.6]} 30... Rxb8 {[%clk
0:00:55.6]} 31. b6 {[%clk 0:00:52.9]} 31... Bc5 {[%clk 0:00:55.5]} 32. c7 {[%clk
0:00:48.9]} 32... Rc8 {[%clk 0:00:50.2]} 33. b7 {[%clk 0:00:49.5]} 33... Rxc7
{[%clk 0:00:37.3]} 34. b8=Q {[%clk 0:00:50.5]} 34... Re7 {[%clk 0:00:33.7]} 35.
Nxf5+ {[%clk 0:00:43.5]} 35... exf5 {[%clk 0:00:31.9]} 36. Bxc5 {[%clk
0:00:44.5]} 36... Re6 {[%clk 0:00:31.1]} 37. Rxe6 {[%clk 0:00:44.1]} 37... fxe6
{[%clk 0:00:33]} 38. Qxe8 {[%clk 0:00:44.7]} 38... Nxf4 {[%clk 0:00:34]} 39.
Bf8+ {[%clk 0:00:44.1]} 39... Kh7 {[%clk 0:00:34.8]} 40. Qf7+ {[%clk 0:00:45]}
40... Kh8 {[%clk 0:00:32.9]} 41. Qg7# {[%clk 0:00:46.9]} 1-0

[Event "*** Qualifier 1: Titled Tuesday 3|2 Blitz"]
[Site "Chess.com"]
[Date "2017.04.04"]
[Round "9"]
[White "TooOldTooSlow70"]
[Black "RitvarsReimanis"]
[Result "1-0"]
[WhiteElo "2347"]
[BlackElo "2417"]
[TimeControl "180+2"]
[EndTime "15:06:47 PDT"]
[Termination "TooOldTooSlow70 won by resignation"]

1. d4 {[%clk 0:03:01.9]} 1... Nf6 {[%clk 0:02:58.1]} 2. Bg5 {[%clk 0:03:02.6]}
2... e6 {[%clk 0:02:58.9]} 3. e3 {[%clk 0:03:02.9]} 3... d5 {[%clk 0:03:00]} 4.
Nd2 {[%clk 0:03:03.6]} 4... Nbd7 {[%clk 0:03:01.3]} 5. Bd3 {[%clk 0:03:04.5]}
5... Be7 {[%clk 0:03:02.9]} 6. f4 {[%clk 0:03:04.6]} 6... b6 {[%clk 0:02:58.6]}
7. Ngf3 {[%clk 0:03:04.1]} 7... Bb7 {[%clk 0:03:00.2]} 8. c3 {[%clk 0:03:02.5]}
8... h6 {[%clk 0:03:00.2]} 9. Bh4 {[%clk 0:02:57.6]} 9... g5 {[%clk 0:02:57.7]}
10. fxg5 {[%clk 0:02:56.4]} 10... Ng4 {[%clk 0:02:57.7]} 11. Qe2 {[%clk
0:02:54.4]} 11... hxg5 {[%clk 0:02:57.8]} 12. Bg3 {[%clk 0:02:56]} 12... f5
{[%clk 0:02:57.7]} 13. h3 {[%clk 0:02:51.2]} 13... Bd6 {[%clk 0:02:53.3]} 14.
Bxd6 {[%clk 0:02:42.4]} 14... cxd6 {[%clk 0:02:55.2]} 15. O-O-O {[%clk
0:02:43.1]} 15... Nh6 {[%clk 0:02:56.4]} 16. g4 {[%clk 0:02:40.8]} 16... Qf6
{[%clk 0:02:36.2]} 17. Rdg1 {[%clk 0:02:11.8]} 17... f4 {[%clk 0:02:28.1]} 18.
e4 {[%clk 0:01:54.7]} 18... O-O-O {[%clk 0:02:24.9]} 19. h4 {[%clk 0:01:41]}
19... Nf7 {[%clk 0:02:25.9]} 20. h5 {[%clk 0:01:38.9]} 20... Rde8 {[%clk
0:02:21.5]} 21. Ba6 {[%clk 0:01:31.4]} 21... Nb8 {[%clk 0:02:18.4]} 22. Bb5
{[%clk 0:01:29.2]} 22... Re7 {[%clk 0:02:17.6]} 23. Re1 {[%clk 0:01:28.8]} 23...
a6 {[%clk 0:02:11.9]} 24. Bd3 {[%clk 0:01:26.7]} 24... Rhe8 {[%clk 0:02:12.8]}
25. e5 {[%clk 0:01:26.1]} 25... dxe5 {[%clk 0:02:10.4]} 26. Nxe5 {[%clk
0:01:27.7]} 26... Nh6 {[%clk 0:01:46.9]} 27. Ndf3 {[%clk 0:01:23.1]} 27... b5
{[%clk 0:01:46.4]} 28. a4 {[%clk 0:01:19.9]} 28... bxa4 {[%clk 0:01:47.7]} 29.
Qc2 {[%clk 0:01:20.2]} 29... a3 {[%clk 0:01:47.4]} 30. bxa3 {[%clk 0:01:18.8]}
30... Rc7 {[%clk 0:01:48.5]} 31. Kd2 {[%clk 0:01:13]} 31... Qe7 {[%clk
0:01:48.6]} 32. Qb3 {[%clk 0:01:09.9]} 32... Bc6 {[%clk 0:01:37.9]} 33. Rb1
{[%clk 0:01:03.7]} 33... Rb7 {[%clk 0:01:36.5]} 34. Nxc6 {[%clk 0:01:04.4]}
34... Nxc6 {[%clk 0:01:30.6]} 35. Bxa6 {[%clk 0:01:04.4]} 35... Na5 {[%clk
0:01:30]} 36. Qa4 {[%clk 0:00:47]} 36... Nc4+ {[%clk 0:01:01.3]} 37. Bxc4 {[%clk
0:00:43.3]} 37... Rxb1 {[%clk 0:00:35.2]} 38. Rxb1 {[%clk 0:00:36.5]} 38... Qc7
{[%clk 0:00:30.6]} 39. Qxe8+ {[%clk 0:00:36.1]} 1-0